fUST/lending_fUST_20240117
["ID","MTS","AMOUNT","RATE_DAILY","PERIOD"]
[311847875,1705462239081,-500.0,0.00030136,2]
[311847876,1705462239092,-506.24435026,0.00030136,2]
[311847877,1705462239102,-500.0,0.00030136,2]
[311847878,1705462239113,-512.96,0.00030136,2]
[311847879,1705462239123,-500.0,0.00030136,2]
[311847880,1705462239136,-500.0,0.00030136,2]
[311847881,1705462239146,-500.0,0.00030136,2]
[311847882,1705462239155,-771.35,0.00030136,2]
[311847883,1705462239166,-500.0,0.00030136,2]
[311847884,1705462239176,-500.0,0.00030136,2]
[311847885,1705462239185,-500.0,0.00030136,2]
[311847886,1705462239197,-653.0,0.00030136,2]
[311847887,1705462239206,-500.0,0.00030136,2]
[311847888,1705462239217,-535.01729986,0.00030136,2]
[311847889,1705462239231,-500.96646124,0.00030136,2]
[311847890,1705462239241,-816.86,0.00030136,2]
[311847891,1705462239251,-347.50098004,0.00030136,2]
[311847892,1705462239261,-500.0,0.00030136,2]
[311847893,1705462239273,-500.0,0.00030136,2]
[311847894,1705462239284,-1000.0,0.00030136,2]
[311847895,1705462239294,-500.0,0.00030136,2]
[311847896,1705462239305,-443.58752436,0.00030136,2]
[311847897,1705462239316,-500.0,0.00030136,2]
[311847898,1705462239326,-500.0,0.00030136,2]
[311847899,1705462239336,-500.0,0.00030136,2]
[311847900,1705462239347,-1405.31,0.00030136,2]
[311847901,1705462239356,-500.0,0.00030136,2]
[311847902,1705462239365,-500.0,0.00030136,2]
[311847903,1705462239375,-500.0,0.00030136,2]
[311847904,1705462239385,-500.0,0.00030136,2]
[311847905,1705462239395,-718.49,0.00030136,2]
[311847906,1705462239404,-500.0,0.00030136,2]
[311847907,1705462239414,-500.0,0.00030136,2]
[311847908,1705462239423,-500.0,0.00030136,2]
[311847909,1705462239495,-500.0,0.00030136,2]
[311847910,1705462239518,-500.0,0.00030136,2]
[311847911,1705462239527,-823.22,0.00030136,2]
[311847912,1705462239536,-1574.4,0.00030136,2]
[311847913,1705462239546,-500.0,0.00030136,2]
[311847914,1705462239556,-500.0,0.00030136,2]
[311847915,1705462239565,-508.30920079,0.00030136,2]
[311847916,1705462239575,-500.0,0.00030136,2]
[311847917,1705462239585,-500.0,0.00030136,2]
[311847918,1705462239595,-622.45133855,0.00030136,2]
[311847919,1705462239605,-366.65755106,0.00030136,2]
[311847921,1705462239616,-500.0,0.00030136,2]
[311847922,1705462239626,-561.09,0.00030136,2]
[311847923,1705462239637,-1151.16,0.00030136,2]
[311847924,1705462239646,-500.0,0.00030136,2]
[311847925,1705462239656,-176.64577153,0.00030136,2]
[311847926,1705462239665,-500.0,0.00030136,2]
[311847927,1705462239674,-872.2,0.00030136,2]
[311847928,1705462239683,-500.0,0.00030136,2]
[311847929,1705462239692,-597.37,0.00030136,2]
[311847930,1705462239702,-501.14,0.00030136,2]
[311847931,1705462239711,-325.42261473,0.00030136,2]
[311847932,1705462239720,-2400.77,0.00030136,2]
[311847933,1705462239729,-500.0,0.00030136,2]
[311847934,1705462239738,-500.0,0.00030136,2]
[311847935,1705462239747,-500.0,0.00030136,2]
[311847936,1705462239757,-500.0,0.00030136,2]
[311847937,1705462239767,-979.92,0.00030136,2]
[311847938,1705462239778,-1721.93,0.00030136,2]
[311847939,1705462239788,-500.0,0.00030136,2]
[311847940,1705462239799,-600.88725899,0.00030136,2]
[311847941,1705462239809,-500.0,0.00030136,2]
[311847942,1705462239818,-500.18169587,0.00030136,2]
[311847943,1705462239828,-500.0,0.00030136,2]
[311847944,1705462239839,-1060.12,0.00030136,2]
[311847945,1705462239847,-1031.97,0.00030136,2]
[311847946,1705462239856,-319.75089756,0.00030136,2]
[311847947,1705462239866,-511.86,0.00030136,2]
[311847948,1705462239874,-500.0,0.00030136,2]
[311847949,1705462239884,-500.0,0.00030136,2]
[311847950,1705462239895,-500.0,0.00030136,2]
[311847951,1705462239904,-500.0,0.00030136,2]
[311847952,1705462239913,-406.59514001,0.00030136,2]
[311847953,1705462239922,-500.0,0.00030136,2]
[311847954,1705462239931,-500.0,0.00030136,2]
[311847955,1705462239939,-506.80923371,0.00030136,2]
[311847956,1705462239948,-500.0,0.00030136,2]
[311847957,1705462239958,-500.0,0.00030136,2]
[311847958,1705462239968,-500.0,0.00030136,2]
[311847959,1705462239977,-500.0,0.00030136,2]
[311847960,1705462239987,-500.0,0.00030136,2]
[311847961,1705462239996,-1191.22,0.00030136,2]
[311847962,1705462240006,-500.0,0.00030136,2]
[311847963,1705462240015,-1307.57,0.00030136,2]
[311847964,1705462240024,-500.0,0.00030136,2]
[311847965,1705462240033,-500.0,0.00030136,2]
[311847966,1705462240044,-500.0,0.00030136,2]
[311847967,1705462240056,-500.0,0.00030136,2]
[311847968,1705462240065,-618.41,0.00030136,2]
[311847969,1705462240075,-500.0,0.00030136,2]
[311847970,1705462240085,-899.06,0.00030136,2]
[311847971,1705462240094,-2172.45,0.00030136,2]
[311847972,1705462240104,-500.0,0.00030136,2]
[311847973,1705462240115,-523.68136719,0.00030136,2]
[311847974,1705462240124,-475.86267501,0.00030136,2]
[311847975,1705462240135,-500.0,0.00030136,2]
[311847976,1705462240144,-500.0,0.00030136,2]
[311847977,1705462240153,-500.0,0.00030136,2]
[311847978,1705462240163,-500.0,0.00030136,2]
[311847979,1705462240172,-500.0,0.00030136,2]
[311847980,1705462240182,-500.0,0.00030136,2]
[311847981,1705462240192,-500.0,0.00030136,2]
[311847982,1705462240202,-500.0,0.00030136,2]
[311847983,1705462240213,-500.0,0.00030136,2]
[311847984,1705462240223,-500.0,0.00030136,2]
[311847985,1705462240232,-500.0,0.00030136,2]
[311847986,1705462240242,-500.0,0.00030136,2]
[311847987,1705462240252,-500.0,0.00030136,2]
[311847988,1705462240262,-557.81864135,0.00030136,2]
[311847989,1705462240273,-500.0,0.00030136,2]
[311847990,1705462240284,-500.0,0.00030136,2]
[311847991,1705462240294,-500.0,0.00030136,4]
[311847992,1705462240303,-429.64655054,0.00030136,2]
[311847993,1705462240312,-500.0,0.00030136,2]
[311847994,1705462240322,-3274.99,0.00030136,2]
[311847996,1705462240331,-500.0,0.00030136,2]
[311847997,1705462240341,-1845.26,0.00030136,2]
[311847999,1705462240350,-500.0,0.00030136,2]
[311848001,1705462240359,-500.0,0.00030136,2]
[311848003,1705462240367,-635.41544431,0.00030136,2]
[311848004,1705462240376,-500.0,0.00030136,2]
[311848005,1705462240387,-500.0,0.00030136,2]
[311848006,1705462240396,-500.0,0.00030136,2]
[311848007,1705462240405,-500.0,0.00030136,5]
[311848008,1705462240415,-500.0,0.00030136,2]
[311848009,1705462240425,-2796.53,0.00030136,2]
[311848010,1705462240434,-500.0,0.00030136,2]
[311848011,1705462240444,-500.0,0.00030136,2]
[311848012,1705462240453,-500.0,0.00030136,2]
[311848013,1705462240462,-518.39614064,0.00030136,2]
[311848014,1705462240471,-731.91,0.00030136,2]
[311848015,1705462240481,-500.0,0.00030136,2]
[311848016,1705462240490,-500.0,0.00030136,2]
[311848017,1705462240500,-500.0,0.00030136,2]
[311848018,1705462240509,-500.0,0.00030136,2]
[311848019,1705462240519,-551.84989273,0.00030136,2]
[311848020,1705462240528,-35661.35,0.00030136,2]
[311848021,1705462240537,-503.15,0.00030136,2]
[311848022,1705462240547,-500.0,0.00030136,2]
[311848023,1705462240556,-500.0,0.00030136,2]
[311848024,1705462240566,-500.0,0.00030136,2]
[311848025,1705462240575,-467.17315,0.00030136,2]
[311848026,1705462240585,-150.0,0.00030136,2]
[311848027,1705462240594,-730.72,0.00030136,2]
[311848028,1705462240604,-1645.32,0.00030136,2]
[311848029,1705462240614,-18353.86,0.00030136,2]
[311848030,1705462240622,-500.0,0.00030136,2]
[311848031,1705462240632,-502.33336312,0.00030136,2]
[311848032,1705462240642,-500.0,0.00030136,2]
[311848033,1705462240652,-500.0,0.00030136,2]
[311848034,1705462240661,-515.41129374,0.00030136,2]
[311848035,1705462240671,-1802.81,0.00030136,2]
[311848036,1705462240680,-501.5399401,0.00030136,2]
[311848037,1705462240689,-500.0,0.00030136,2]
[311848038,1705462240699,-500.0,0.00030136,2]
[311848039,1705462240707,-3963.20661068,0.00030136,2]
[311848081,1705462243150,-2328.4,0.00030035,2]
[311848083,1705462243159,-2328.4,0.00030135,2]
[311848085,1705462243169,-2328.4,0.00030135,2]
[311848087,1705462243178,-3480.33338932,0.00030136,2]
[311848088,1705462243189,-500.0,0.00030136,2]
[311848090,1705462243198,-500.0,0.00030136,2]
[311848092,1705462243207,-4733.05,0.00030136,2]
[311848093,1705462243217,-500.0,0.00030136,2]
[311848095,1705462243227,-500.0,0.00030136,2]
[311848097,1705462243236,-9563.8,0.00030136,2]
[311848099,1705462243247,-500.0,0.00030136,2]
[311848101,1705462243256,-3312.79,0.00030136,2]
[311848104,1705462243266,-500.0,0.00030136,2]
[311848107,1705462243277,-2601.36,0.00030136,2]
[311848110,1705462243287,-7166.1,0.00030136,2]
[311848113,1705462243297,-500.0,0.00030136,2]
[311848116,1705462243307,-500.0,0.00030136,2]
[311848119,1705462243318,-3093.29,0.00030136,2]
[311848122,1705462243329,-619.26,0.00030136,2]
[311848125,1705462243339,-547.63,0.00030136,2]
[311848128,1705462243348,-500.0,0.00030136,2]
[311848130,1705462243358,-501.85773985,0.00030136,2]
[311848133,1705462243367,-1457.85,0.00030136,2]
[311848135,1705462243376,-500.0,0.00030136,2]
[311848137,1705462243386,-795.21,0.00030136,2]
[311848140,1705462243396,-4932.45830078,0.00030136,2]
[311848159,1705462246206,-154.9690062,0.00027031,4]
[311848160,1705462246215,-1000.0,0.0003,14]
[311848162,1705462246225,-243.87038791,0.00030035,4]
[311848164,1705462246234,-1057.00562394,0.00030035,4]
[311848166,1705462246243,-1253.57966844,0.00030136,2]
[311848251,1705462287643,155.64,0.0003,120]
[311848339,1705463438366,-154.9690062,0.00026835,4]
[311848341,1705463438376,-374.92499287,0.00026841,2]
[311848343,1705463438385,-165.56563467,0.00027122,2]
[311848345,1705463438396,-182.483225,0.00027444,2]
[311848347,1705463438408,-154.9690062,0.00028032,2]
[311848358,1705463438500,-164.049905,0.00028033,2]
[311848360,1705463438511,-6290.25619515,0.00028035,2]
[311848363,1705463438525,-312.83061509,0.00028035,2]
[311848364,1705463438534,-402.30881654,0.00028036,2]
[311848366,1705463438543,-855.6069911,0.00028092,2]
[311848368,1705463438552,-188.0538936,0.00028094,2]
[311848370,1705463438561,-127.94002389,0.00029,2]
[311848373,1705463438572,-1372.05997611,0.00029,2]
[311848374,1705463438581,-620.2473598,0.00029404,2]
[311848376,1705463438590,-507.44695546,0.0002985,2]
[311848379,1705463438601,-189.91315259,0.00029867,2]
[311848380,1705463438610,-2152.50179527,0.00029926,3]
[311848382,1705463438621,-220.35820473,0.00029926,3]
[311848384,1705463438630,-669.32461334,0.00029926,3]
[311848386,1705463438642,-1308.05538666,0.00029926,3]
[311848388,1705463438654,-1647.82,0.00029926,3]
[311848390,1705463438663,-1985.76025693,0.00029934,2]
[311848392,1705463438672,-1196.58612071,0.00029935,2]
[311848394,1705463438683,-3126.02728391,0.00029935,2]
[311848396,1705463438692,-239.30953491,0.00029935,2]
[311848398,1705463438701,-1629.87,0.00029935,2]
[311848400,1705463438710,-1629.87,0.00029935,2]
[311848402,1705463438720,-1629.87,0.00029935,2]
[311848404,1705463438729,-1629.87,0.00029935,2]
[311848406,1705463438738,-1629.87,0.00029935,2]
[311848407,1705463438747,-1629.87,0.00029935,2]
[311848408,1705463438757,-1629.87,0.00029935,2]
[311848409,1705463438766,-1371.80872451,0.00029935,2]
[311848412,1705463441297,-258.06127549,0.00029935,2]
[311848413,1705463441306,-513.47272381,0.00029935,2]
[311848414,1705463441318,-911.99904468,0.00029935,2]
[311848415,1705463441330,-204.39823151,0.00029935,2]
[311848416,1705463441339,-57.14776849,0.00029936,2]
[311848417,1705463441360,-26389.98208886,0.00029936,2]
[311848473,1705464567114,-170.72767926,0.00020987,2]
[311848474,1705464567138,-154.9690062,0.00020988,4]
[311848475,1705464567160,-265.226858,0.00020989,2]
[311848476,1705464567183,-154.9690062,0.00020991,4]
[311848477,1705464567204,-249.51667028,0.00021,2]
[311848534,1705464634152,-140.11449182,0.00021,2]
[311848537,1705464634163,-310.93139923,0.00024764,2]
[311848541,1705464634175,-6292.15541101,0.00024764,2]
[311848544,1705464634185,-20856.74094131,0.00024765,2]
[311848547,1705464634195,-379.0499592,0.00024767,2]
[311848549,1705464634205,-244.3681799,0.00025202,2]
[311848552,1705464634214,-4423.802701,0.00025958,2]
[311848554,1705464634223,-155.76157814,0.00026941,2]
[311848557,1705464634232,-154.9690062,0.00026998,4]
[311848560,1705464634242,-200.0,0.00027241,15]
[311848562,1705464634251,-182.483225,0.00027286,2]
[311848564,1705464634259,-167.0774699,0.00027742,2]
[311848566,1705464634269,-268.2058777,0.00027836,2]
[311848568,1705464634278,-154.9690062,0.00028,2]
[311848570,1705464634287,-154.724551,0.00028978,2]
[311848572,1705464634296,-182.483225,0.00029146,2]
[311848574,1705464634305,-153.0,0.00029178,2]
[311848576,1705464634314,-306.0,0.00029315,2]
[311848578,1705464634324,-198.957615,0.00029315,2]
[311848579,1705464634334,-306.0,0.00029315,2]
[311848580,1705464634344,-156.4118883,0.00029315,2]
[311848581,1705464634353,-198.957615,0.00029315,2]
[311848582,1705464634362,-153.0,0.00029315,2]
[311848583,1705464634454,-198.957615,0.00029315,2]
[311848584,1705464634465,-198.957615,0.00029315,2]
[311848585,1705464634476,-153.0,0.00029315,2]
[311848586,1705464634486,-198.957615,0.00029315,2]
[311848587,1705464634496,-11291.76215821,0.00029493,4]
[311848588,1705464634506,-361.60726484,0.00029503,4]
[311848589,1705464634517,-154.54943874,0.00029745,2]
[311848590,1705464634526,-160.18542455,0.00029787,2]
[311848591,1705464634536,-200.05434929,0.00029872,2]
[311848592,1705464634546,-2699.72017309,0.000299,2]
[311848593,1705464634555,-246.32961597,0.00029934,2]
[311848594,1705464634565,-2947.92237444,0.00029936,2]
[311848595,1705464634575,-2094.26336916,0.00029936,2]
[311848596,1705464634583,-300.0,0.00029936,2]
[311848597,1705464634593,-155.7540775,0.00029936,2]
[311848598,1705464634603,-160.18542455,0.00029953,2]
[311848599,1705464634613,-280.0,0.00029965,15]
[311848600,1705464634623,-264.61662857,0.00029999,2]
[311848601,1705464634633,-170.72767926,0.00029999,2]
[311848602,1705464634643,-1000.0,0.0003,14]
[311848603,1705464634652,-682.08739099,0.0003,3]
[311848604,1705464634662,-1152.97825558,0.0003,2]
[311848605,1705464634671,-11993.30099737,0.0003,2]
[311848833,1705464644045,-198.957615,0.00029315,2]
[311848835,1705464644054,-1720.32,0.0002999,3]
[311848837,1705464644063,-385.722385,0.0003,2]
[311848874,1705464835756,10000.0,0.00018001,2]
[311848877,1705464912685,10000.0,0.00018001,2]
[311848878,1705464925865,10000.0,0.00018001,2]
[311848879,1705464935573,10000.0,0.00018001,2]
[311848880,1705464949754,10000.0,0.00018001,2]
[311848881,1705464966446,830.0,0.00018001,2]
[311848882,1705464966469,7579.0,0.00018001,2]
[311848884,1705465015208,155.07865337,0.00018001,2]
[311848889,1705465544223,552.77511274,0.00018001,2]
[311848890,1705465545635,267.06974646,0.00016201,2]
[311848891,1705465548760,683.89161732,0.00018001,2]
[311848893,1705465556742,306.96756882,0.00018001,2]
[311848894,1705465574756,1275.10173555,0.00018001,2]
[311848895,1705465584731,683.61818877,0.00018001,2]
[311848896,1705465588738,1275.10173555,0.00018001,2]
[311848898,1705465601898,154101.07896674,0.00018001,2]
[311848899,1705465612744,274.69490235,0.00018001,2]
[311848900,1705465627885,154.9690062,0.00017911,2]
[311848906,1705465738784,683.61818877,0.00017911,2]
[311848947,1705465831754,-164.97376149,0.00018974,2]
[311848949,1705465831764,-154.98450155,0.00018974,2]
[311848951,1705465831774,-205.61553695,0.00018974,2]
[311848988,1705465837932,-178.75171089,0.00018973,2]
[311848989,1705465837941,-554.79776327,0.00018973,2]
[311848992,1705465837951,-3.04484598,0.00018974,2]
[311848993,1705465837960,-606.8708796,0.00018974,2]
[311848995,1705465837970,-230.62037245,0.00018974,2]
[311848997,1705465837979,-154.98450155,0.00018974,2]
[311848999,1705465837988,-323.26735776,0.00018975,2]
[311849001,1705465837997,-294.58131325,0.00018975,2]
[311849003,1705465838007,-19850.23525334,0.00018975,2]
[311849005,1705465838015,-178.58004626,0.00018976,2]
[311849007,1705465838024,-452.30060806,0.00018976,2]
[311849009,1705465838034,-8754.07446216,0.00018976,2]
[311849011,1705465838043,-6603.08681024,0.00018977,2]
[311849013,1705465838052,-154.98450155,0.00018977,2]
[311849015,1705465838061,-873.51620875,0.00018977,2]
[311849017,1705465838070,-4809.36169372,0.00018978,2]
[311849019,1705465838079,-245.97432418,0.00018978,2]
[311849021,1705465838088,-1588.60568926,0.00018979,2]
[311849023,1705465838098,-20883.4067582,0.0001898,2]
[311849025,1705465838107,-995.5330643,0.00018995,2]
[311849027,1705465838118,-7508.57474133,0.00019991,2]
[311849029,1705465838127,-2881.75819028,0.00019996,2]
[311849031,1705465838138,-16609.38018649,0.00019996,2]
[311849033,1705465838149,-300.0,0.0002,2]
[311849044,1705465838237,-176.8605585,0.0002,2]
[311849046,1705465838246,-2995.12470388,0.0002,2]
[311849048,1705465838256,-154.98450155,0.00020876,2]
[311849049,1705465838266,-237.84642437,0.00020876,2]
[311849052,1705465838276,-200.0,0.00020877,2]
[311849054,1705465838285,-1830.86198841,0.00021,2]
[311849056,1705465838294,-166.666666,0.00021918,2]
[311849058,1705465838304,-155.40043546,0.00022,2]
[311849060,1705465838313,-425.53656097,0.00022,2]
[311849062,1705465838322,-166.666666,0.00022431,2]
[311849064,1705465838331,-166.666666,0.00022944,2]
[311849066,1705465838340,-280.0,0.00022964,7]
[311849068,1705465838349,-166.666666,0.00023456,2]
[311849070,1705465838358,-166.666666,0.00023969,2]
[311849072,1705465838367,-166.666666,0.00024482,2]
[311849074,1705465838377,-1986.59469693,0.0002526,2]
[311849075,1705465838386,-391.0,0.00025261,7]
[311849077,1705465838396,-763.2160188,0.00026996,5]
[311849079,1705465838405,-200.0,0.00027787,15]
[311849081,1705465838415,-348.0,0.00027787,15]
[311849083,1705465838425,-178.80391846,0.000279,2]
[311849085,1705465838435,-633.5164446,0.00028241,2]
[311849088,1705465838444,-238.8837402,0.00028493,10]
[311849090,1705465838454,-5998.21298933,0.00028494,2]
[311849092,1705465838463,-2071.696278,0.00028776,2]
[311849093,1705465838472,-154.98450155,0.00028776,2]
[311849095,1705465838481,-2101.24804165,0.00028776,2]
[311849098,1705465838490,-154.98450155,0.00028777,2]
[311849100,1705465838500,-153.0,0.00028778,2]
[311849102,1705465838510,-198.957615,0.00028778,2]
[311849103,1705465838519,-198.957615,0.00028778,2]
[311849104,1705465838529,-153.0,0.00028778,2]
[311849105,1705465838538,-200.22735332,0.00029177,2]
[311849106,1705465838547,-153.0,0.00029178,2]
[311849107,1705465838556,-198.957615,0.00029178,2]
[311849108,1705465838565,-198.957615,0.00029178,2]
[311849109,1705465838574,-198.957615,0.00029178,2]
[311849110,1705465838584,-153.0,0.00029278,2]
[311849111,1705465838594,-198.957615,0.00029278,2]
[311849112,1705465838604,-198.957615,0.00029278,2]
[311849113,1705465838613,-153.0,0.00029315,2]
[311849114,1705465838622,-153.0,0.00029378,2]
[311849115,1705465838631,-198.957615,0.00029378,2]
[311849116,1705465838640,-1259.09,0.00029493,3]
[311849117,1705465838650,-155.39263865,0.00029501,2]
[311849118,1705465838659,-155.86327089,0.00029501,2]
[311849119,1705465838668,-538.02581037,0.00029502,2]
[311849120,1705465838677,-5000.0,0.00029503,5]
[311849121,1705465838687,-1682.97543973,0.00029503,4]
[311849122,1705465838697,-1500.0,0.000299,2]
[311849123,1705465838706,-154.29352415,0.0002996,2]
[311849124,1705465838716,-154.29352415,0.00029986,2]
[311849125,1705465838725,-420.27942038,0.00029994,2]
[311849126,1705465838734,-193.1385037,0.00029994,2]
[311849127,1705465838743,-1614.98376615,0.00029994,2]
[311849128,1705465838754,-4022.01559008,0.00029996,2]
[311849129,1705465838763,-155.11960358,0.00029996,2]
[311849130,1705465838772,-2823.66638304,0.00029996,2]
[311849131,1705465838782,-680.7625331,0.00029996,2]
[311849132,1705465838791,-13753.98237904,0.00029996,2]
[311849133,1705465838800,-1536.1915385,0.00029996,2]
[311849134,1705465838809,-155.11225332,0.00029996,2]
[311849135,1705465838821,-309.94529346,0.00029996,2]
[311849136,1705465838830,-1066.95803024,0.00029996,2]
[311849137,1705465838839,-525.57379999,0.00029998,2]
[311849138,1705465838848,-23402.71373227,0.00029998,2]
[311849139,1705465838857,-155.35440955,0.00029998,2]
[311849140,1705465838866,-561.04928644,0.00029998,2]
[311849141,1705465838876,-526.17799726,0.00029998,2]
[311849142,1705465838885,-162.94145327,0.00029998,2]
[311849143,1705465838894,-7995.1019034,0.00029998,2]
[311849144,1705465838903,-260.87871221,0.00029998,2]
[311849145,1705465838912,-8061.02558922,0.00029998,2]
[311849146,1705465838923,-2743.9133101,0.00029998,2]
[311849147,1705465838932,-151.0,0.00029998,2]
[311849148,1705465838941,-151.0,0.00029998,2]
[311849149,1705465838951,-8051.48341602,0.0003,2]
[311849150,1705465838961,-252.82007553,0.0003,2]
[311849151,1705465838970,-21454.9572292,0.0003,2]
[311849152,1705465838980,-243.87038791,0.0003,4]
[311849153,1705465838989,-506.88955598,0.0003,3]
[311849154,1705465838998,-374.76193364,0.0003,14]
[311849155,1705465839009,-29931.32135384,0.0003,2]
[311849156,1705465839019,-157.73856703,0.0003,2]
[311849157,1705465839029,-932.37,0.0003,2]
[311849158,1705465839038,-151.0,0.0003,2]
[311849159,1705465839048,-173.939081,0.0003,2]
[311849160,1705465839057,-195.65,0.00030035,2]
[311849161,1705465839067,-195.65,0.00030035,2]
[311849162,1705465839079,-195.65,0.00030035,2]
[311849163,1705465839088,-195.65,0.00030035,2]
[311849164,1705465839098,-195.65,0.00030035,2]
[311849165,1705465839108,-195.65,0.00030035,2]
[311849166,1705465839126,-195.65,0.00030035,2]
[311849167,1705465839145,-195.65,0.00030035,2]
[311849168,1705465839161,-195.65,0.00030035,2]
[311849169,1705465839173,-195.65,0.00030035,2]
[311849170,1705465839190,-123612.27009949,0.00030036,2]
[311849171,1705465839200,-151.0,0.00030036,2]
[311849172,1705465839209,-15905.2680538,0.00030036,3]
[311849173,1705465839218,-156.64524902,0.00030135,2]
[311849174,1705465839228,-500.0,0.00030135,2]
[311849175,1705465839238,-500.0,0.00030135,2]
[311849176,1705465839248,-500.0,0.00030135,2]
[311849177,1705465839259,-500.0,0.00030135,2]
[311849178,1705465839268,-500.0,0.00030135,2]
[311849179,1705465839278,-500.0,0.00030135,2]
[311849180,1705465839287,-236.24885337,0.00030135,2]
[311849181,1705465839296,-598.89005525,0.00030135,2]
[311849182,1705465839305,-500.0,0.00030135,2]
[311849183,1705465839314,-500.0,0.00030135,2]
[311849184,1705465839324,-500.0,0.00030135,2]
[311849185,1705465839334,-500.0,0.00030135,2]
[311849186,1705465839343,-500.0,0.00030135,2]
[311849187,1705465839352,-447.63280994,0.00030135,2]
[311849188,1705465839362,-500.0,0.00030135,2]
[311849189,1705465839371,-500.0,0.00030135,2]
[311849190,1705465839380,-645.05042959,0.00030135,2]
[311849191,1705465839389,-500.0,0.00030135,2]
[311849192,1705465839398,-611.17308394,0.00030135,2]
[311849193,1705465839407,-500.0,0.00030135,2]
[311849194,1705465839416,-500.0,0.00030135,2]
[311849195,1705465839426,-500.0,0.00030135,2]
[311849196,1705465839436,-500.0,0.00030135,2]
[311849197,1705465839445,-500.0,0.00030135,2]
[311849198,1705465839454,-500.0,0.00030135,2]
[311849199,1705465839464,-500.0,0.00030135,2]
[311849200,1705465839473,-500.0,0.00030135,2]
[311849201,1705465839482,-500.0,0.00030135,2]
[311849202,1705465839492,-500.0,0.00030135,2]
[311849203,1705465839501,-500.0,0.00030135,2]
[311849204,1705465839512,-522.77330577,0.00030135,2]
[311849205,1705465839521,-500.0,0.00030135,2]
[311849206,1705465839531,-410.00722522,0.00030135,2]
[311849207,1705465839540,-500.0,0.00030135,2]
[311849208,1705465839550,-500.0,0.00030135,2]
[311849209,1705465839560,-500.0,0.00030135,2]
[311849210,1705465839634,-500.0,0.00030135,2]
[311849211,1705465839644,-512.92604056,0.00030135,2]
[311849212,1705465839653,-500.0,0.00030135,2]
[311849213,1705465839663,-485.00104972,0.00030135,2]
[311849214,1705465839672,-175.71738223,0.00030135,2]
[311849215,1705465839681,-499.99999999,0.00030135,2]
[311849216,1705465839690,-500.0,0.00030135,2]
[311849217,1705465839699,-500.0,0.00030135,2]
[311849218,1705465839708,-500.0,0.00030135,2]
[311849219,1705465839717,-279.69453042,0.00030135,2]
[311849220,1705465839726,-500.0,0.00030135,2]
[311849221,1705465839736,-500.0,0.00030135,2]
[311849222,1705465839745,-500.0,0.00030135,2]
[311849223,1705465839756,-500.0,0.00030135,2]
[311849224,1705465839765,-511.76240961,0.00030135,2]
[311849225,1705465839774,-199.99999999,0.00030135,2]
[311849226,1705465839783,-500.0,0.00030135,2]
[311849227,1705465839792,-454.16754143,0.00030135,2]
[311849228,1705465839801,-377.24190838,0.00030135,2]
[311849229,1705465839811,-191.12546027,0.00030135,2]
[311849230,1705465839820,-500.0,0.00030135,2]
[311849231,1705465839830,-500.0,0.00030135,2]
[311849232,1705465839839,-250.0,0.00030135,2]
[311849233,1705465839848,-450.0076055,0.00030135,2]
[311849234,1705465839858,-500.0,0.00030135,2]
[311849235,1705465839868,-500.0,0.00030135,2]
[311849236,1705465839876,-192.86040235,0.00030135,2]
[311849237,1705465839886,-500.0,0.00030135,4]
[311849238,1705465839895,-500.0,0.00030135,4]
[311849239,1705465839905,-500.0,0.00030135,4]
[311849240,1705465839915,-455.34731137,0.00030135,4]
[311849241,1705465839924,-500.0,0.00030135,4]